Cogmind - Beta 16 @@@ ROGUE MODE // 2025.12.22 @ 03:14:38 Player: tsintsir Result: Destroyed by B-75 Beast with Heavy Plasma Cannon Performance ------------- Evolutions (4) 2000 Regions Visited (5) 1000 Robots Destroyed (28) 140 Value Destroyed (916) 916 Prototype IDs (27) 540 Alien Tech Used (0) 0 Bonus (800) 800 TOTAL SCORE: 5396 Bonus ------- Registered with UFD 300 Met Optimus in HQ 500 Cogmind --------- Core Integrity 0/850 Matter 300/300 Energy 19/125 System Corruption 1% Temperature Cool (12) Movement Treading (152) Location -6/Extension Parts ------- > --- POWER (2) -------- Light Ion Engine > --- PROPULSION (3) --- Advanced Treads Improved Medium Treads > --- UTILITY (7) ------ Improved Heat Sink Advanced Sensor Array Improved Signal Interpreter Advanced Terrain Scan Processor Transmission Jammer > --- WEAPON (3) ------- Beamcaster Thermal Lance > --- INVENTORY (5) ---- Gatling Laser Flak Gun Scythe Peak State ------------ > --- POWER ------------ Enhanced Nuclear Core Light Angular Momentum Engine > --- PROPULSION ------- Aluminum Leg Carbon-fiber Leg > --- UTILITY ---------- Scrap Suit Machine Analyzer Advanced Sensor Array Improved Signal Interpreter Improved Terrain Scanner Hacking Suite > --- WEAPON ----------- Improved Heavy Laser Heavy Machine Gun Thermal Lance > --- INVENTORY -------- Advanced Treads Phase Shifter Shock Rifle Proton Cannon Dirty Datajack [Rating: 62] Favorites ----------- Power Meta Core Engine Ion Engine Power Core Meta Core Propulsion Subdweller Monowheel Treads Light Treads Leg Aluminum Leg Wheel Subdweller Monowheel Utility Seismic Detector Device Seismic Detector Storage Small Storage Unit Processor Advanced Signal Interpreter Hackware Hacking Suite Protection Improved Light Armor Plating Weapon Assault Rifle Energy Gun Overtuned Quantum Rifle Energy Cannon Subdweller Beam Cannon Ballistic Gun Assault Rifle Slashing Weapon Scythe Piercing Weapon Thermal Lance Special Melee Weapon Dirty Datajack Build | -11 -10 -10 -8 -6 -6 ------- Run | Yrd Mat Sub Scr Fac Ext Slots Evolved 8 | . . . . 8 . Power 1 | . . . . 1 . Propulsion 1 | . . . . 1 . Utility 5 | . . . . 5 . Weapon 1 | . . . . 1 . Parts Attached 68 | 8 . 9 19 14 18 Power 8 | 1 . 2 1 2 2 Engine 6 | 1 . 1 1 1 2 Core 2 | . . 1 . 1 . Reactor . | . . . . . . Propulsion 15 | 2 . 2 7 . 4 Treads 7 | 2 . . 2 . 3 Leg 5 | . . . 4 . 1 Wheel 3 | . . 2 1 . . Hover . | . . . . . . Flight . | . . . . . . Utility 24 | 3 . 2 5 8 6 Device 14 | 2 . 2 3 3 4 Storage 1 | 1 . . . . . Processor 7 | . . . 2 4 1 Hackware 1 | . . . . 1 . Protection 1 | . . . . . 1 Artifact . | . . . . . . Weapon 21 | 2 . 3 6 4 6 Energy Gun 10 | . . . 4 2 4 Energy Cannon 2 | . . 1 . 1 . Ballistic Gun 6 | 2 . 1 1 1 1 Ballistic Cannon . | . . . . . . Launcher . | . . . . . . Special Weapon . | . . . . . . Impact Weapon . | . . . . . . Slashing Weapon 1 | . . . . . 1 Piercing Weapon 1 | . . . 1 . . Special Melee Weapon 1 | . . 1 . . . Unidentified Prototypes 2 | . . . . 2 . Parts Lost 23 | . . . 2 1 20 Power 3 | . . . . . 3 Propulsion 6 | . . . 2 . 4 Utility 8 | . . . . 1 7 Weapon 6 | . . . . . 6 Highest Loss Streak 10 | . . . 2 1 10 To Critical Strikes . | . . . . . . Average Backups 5 | 1 3 5 6 3 2 Power 1 | . 1 1 2 . . Propulsion . | . . . . . . Utility 2 | . 1 1 3 . . Weapon . | . 1 1 . 1 1 Tool/Special . | . . . . . . Unused Backups 3 | . . 1 2 . . Power 1 | . . . 1 . . Propulsion 1 | . . . 1 . . Utility . | . . . . . . Weapon 1 | . . 1 . . . Tool/Special . | . . . . . . Average Slot Usage (%) 77 | . 100 97 74 81 71 Engine 2 | . 14 12 . 6 4 Core 7 | . . 1 9 3 4 Treads 4 | . 28 13 3 . 7 Leg 2 | . . . . 13 5 Wheel 6 | . . 13 7 . . Device 15 | . 14 14 13 21 17 Storage 7 | . 14 13 8 . . Processor 7 | . . . 7 14 12 Energy Gun 4 | . . . 5 6 6 Energy Cannon 3 | . . 6 3 . . Ballistic Gun 12 | . 28 21 13 3 1 Piercing Weapon 1 | . . . . 6 1 Peak Build Rating 62 | 9 7 27 54 62 59 Average Rating 32 | 5 7 11 30 56 47 On Entrance 21 | . 7 7 27 30 59 Avg Prop Armor Cover (%) 8 | . . . 8 . . Naked Turns 9 | . . . 9 . . Heaviest Build 40 | 14 14 28 28 37 40 Greatest Support 72 | 40 40 40 43 25 72 Greatest Overweight (x) 9 | . . . 9 1 3 Average Overweight (x) 2 | . . . 4 . . Largest Inventory Capacity 8 | 8 8 8 8 5 5 Average Capacity 7 | 7 8 8 7 5 5 Most Carried 8 | 3 3 8 8 5 5 Average Carried 5 | 1 3 5 6 3 2 Final Capacity 8 | 8 8 8 5 5 5 Final Carried 6 | 3 3 6 5 5 3 Scrap Suit Usage (%) 15 | . . . 1 100 31 Parts Cannibalized 1 | . . . . . 1 Class Distribution -------------------- 33% | Mutant 28% | Scavenger-Skirmisher 16% | Gunner 13% | Scavenger-Assassin 7% | Scavenger-Mutant Dominant Class ---------------- Mutant | -10/Materials Mutant | -10/Subcaves Scavenger-Skirmisher | -8/Scraptown Scavenger-Assassin | -6/Factory Mutant | -6/Extension Resources | -11 -10 -10 -8 -6 -6 ----------- Run | Yrd Mat Sub Scr Fac Ext Matter Collected 1334 | 296 . 126 455 145 312 Remotely . | . . . . . . Salvage Created 1344 | 104 . 200 27 203 810 Parts 59 | 5 . 16 . 7 31 Haulers Intercepted 1 | . . . . . 1 Recyclers Shooed 2 | 1 . . . . 1 Parts Field Recycled . | . . . . . . Retrieved Matter . | . . . . . . Parts Self-Destructed 26 | . . 6 20 . . Prevented . | . . . . . . Parts Restored . | . . . . . . Kills | -11 -10 -10 -8 -6 -6 ------- Run | Yrd Mat Sub Scr Fac Ext Combat Hostiles Destroyed 16 | . . 5 . 3 8 Melee 3 | . . . . 2 1 Guns 7 | . . 2 . 1 4 Cannons 4 | . . 3 . . 1 Classes Destroyed 13 | 2 . 2 1 4 4 Worker 4 | . . . . 1 3 Builder 1 | . . . . 1 . Tunneler 2 | 1 . . . . 1 Hauler 1 | . . . . . 1 Recycler 2 | 1 . . . . 1 Turret 1 | . . . 1 . . Watcher 1 | . . . . 1 . Grunt 6 | . . 2 . 1 3 Brawler 1 | . . . . . 1 Sentry 3 | . . . . . 3 Hunter 1 | . . . . . 1 Programmer 2 | . . . . 2 . Subdweller 3 | . . 3 . . . Best Kill Streak 5 | 2 . 2 1 2 5 Combat Bots Only 4 | . . 2 . 1 4 Max Kills in Single Turn 1 | 1 . 1 1 1 1 Gunslinging . | . . . . . . Exploded . | . . . . . . Melee 1 | . . . . 1 1 Uniques/NPCs Destroyed . | . . . . . . Combat | -11 -10 -10 -8 -6 -6 -------- Run | Yrd Mat Sub Scr Fac Ext Hostile Shots Fired 384 | . . 10 20 36 318 Missed 143 | . . 5 4 9 125 Hits 241 | . . 5 16 27 193 Melee 2 | . . . 2 . . Projectile 239 | . . 5 14 27 193 Critical Strikes 7 | . . . 4 1 2 Damage Taken 3635 | . . 194 338 460 2643 Core 1055 | . . 52 148 101 754 Absorbed by Shields . | . . . . . . Regen/Repaired (Parts) 10 | . . . . . 10 Core Remaining (%) 60 | 100 . . 20 . . Volleys Fired 73 | 4 . 17 15 8 29 Largest 3 | 2 . 2 3 2 3 Hottest 240 | 40 . 110 240 95 190 Shots Fired 125 | 8 . 31 19 11 56 Gun 112 | 8 . 23 19 11 51 Cannon 13 | . . 8 . . 5 Launcher . | . . . . . . Special . | . . . . . . Kinetic 45 | 8 . 23 3 3 8 Thermal 70 | . . 8 16 8 38 Explosive . | . . . . . . Electromagnetic 10 | . . . . . 10 Robot Hit Streak 10 | 4 . 4 1 2 10 Robot Miss Streak 4 | 1 . 2 1 4 4 Penetration Max . | . . . . . . Secondary Targets 2 | . . . . . 2 Max Gunslinging Chain 1 | . . . . . 1 Shots Hit Robots 91 | 6 . 14 2 19 50 Core Hits 44 | 4 . 9 1 7 23 Critical Kills . | . . . . . . Critical Parts Destroyed 1 | . . 1 . . . Critical Strikes 4 | . . 1 . . 3 Burn 3 | . . . . . 3 Destroy 1 | . . 1 . . . Melee Attacks 37 | . . . . 24 13 Thermal 24 | . . . . 17 7 Impact . | . . . . . . Slashing 5 | . . . . . 5 Piercing 8 | . . . . 7 1 Sneak Attacks 7 | . . . . 3 4 Combat Hostiles . | . . . . . . Follow-up Attacks . | . . . . . . Damage Inflicted 2918 | 61 . 267 45 851 1694 Guns 1379 | 61 . 158 45 114 1001 Cannons 248 | . . 109 . . 139 Explosions . | . . . . . . Melee 1291 | . . . . 737 554 Ramming . | . . . . . . Kinetic 345 | 61 . 158 10 . 116 Thermal 2295 | . . 109 35 835 1316 Explosive . | . . . . . . Electromagnetic 196 | . . . . . 196 Impact . | . . . . . . Slashing 63 | . . . . . 63 Piercing 19 | . . . . 16 3 Highest Corruption 1 | . . . . 1 1 Average Corruption 1 | . . . . 1 1 Corruption Purged . | . . . . . . Corruption Blocked . | . . . . . . Effects 9 | . . . . . 9 Message Errors 1 | . . . . . 1 Matter Fused 2 | . . . . . 2 Heat Flow Errors 1 | . . . . . 1 Energy Discharges 3 | . . . . . 3 Data Loss (minor) 1 | . . . . . 1 Misfires 1 | . . . . . 1 Overload Shots . | . . . . . . Overflow Damage 413 | . . . . 205 208 Projectiles 1 | . . . . . 1 Explosions . | . . . . . . Melee 412 | . . . . 205 207 Knockbacks . | . . . . . . Impact . | . . . . . . Kinetic . | . . . . . . Secondary . | . . . . . . Self-Inflicted Damage . | . . . . . . Shots . | . . . . . . Rammed . | . . . . . . Targets Rammed . | . . . . . . Kicked . | . . . . . . Crushed . | . . . . . . Highest Temperature 849 | . . . 849 361 313 Average Temperature 174 | . . . 422 85 110 Received Heat Transfer 1200 | . . 45 148 126 881 Effects 26 | . . . 24 2 . Shutdowns 3 | . . . 2 1 . Energy Bleed 2 | . . . 1 1 . Interference 5 | . . . 5 . . Matter Decay 5 | . . . 5 . . Damage (minor) 1 | . . . 1 . . Damage (major) 9 | . . . 9 . . Damage (core) 1 | . . . 1 . . Siege Activations . | . . . . . . Martial Activations . | . . . . . . Shielding Activations . | . . . . . . Robots Disrupted . | . . . . . . Combat Hostiles . | . . . . . . Robots Corrupted 1 | . . . . . 1 Combat Hostiles . | . . . . . . Parts Fried 2 | . . . . . 2 Impact Corruptions . | . . . . . . Robots Melted 2 | . . . . . 2 Combat Hostiles 2 | . . . . . 2 Parts Melted 13 | . . . . 5 8 Heat Transferred 3408 | . . 148 50 1147 2063 Parts Sabotaged . | . . . . . . Parts Stolen . | . . . . . . Parts Stripped . | . . . . . . Power Chain Reactions . | . . . . . . Alert | -11 -10 -10 -8 -6 -6 ------- Run | Yrd Mat Sub Scr Fac Ext Maximum Alert Level . | . . . . . . Low Security (%) 100 | 100 100 . . 100 100 Level 1 . | . . . . . . Level 2 . | . . . . . . Level 3 . | . . . . . . Level 4 . | . . . . . . Level 5 . | . . . . . . High Security . | . . . . . . Max Security . | . . . . . . Peak Influence 113 | 10 . . . 32 113 Initial 4 | . . . . . 4 Average 16 | . . . . 4 37 Influence Increases 599 | 10 . 50 15 152 372 Destroy 0b10 Robot/C 260 | . . 40 . 60 160 Destroy 0b10 Robot/NC 55 | 10 . . . 15 30 Destroy Leader 62 | . . 10 . 22 30 Allied During Kill 5 | . . . . . 5 Successful Hack 14 | . . . . 5 9 Disable Machine 15 | . . . . 15 . Destroy Structure 8 | . . . . 5 3 Lose Combat Pursuer 180 | . . . 15 30 135 Influence Decreases 561 | 10 . 50 15 142 344 Entered New Map 6 | . . . . . 6 Time Decay 420 | 10 . 50 . 132 228 Lost Part 80 | . . . . 10 70 Lost Ally 55 | . . . 15 . 40 Squads Dispatched 2 | . . . . 2 . Investigation . | . . . . . . Extermination 1 | . . . . 1 . Reinforcement 1 | . . . . 1 . Assault . | . . . . . . Garrison . | . . . . . . Intercept . | . . . . . . Searches Triggered . | . . . . . . Construction Impeded . | . . . . . . Haulers Reinforced . | . . . . . . Active Scanning Responses . | . . . . . . Cargo Convoy Interrupts . | . . . . . . Stealth | -11 -10 -10 -8 -6 -6 --------- Run | Yrd Mat Sub Scr Fac Ext Distress Signals . | . . . . . . Communications Jammed 21 | . . . . . 21 Distress Signals 21 | . . . . . 21 Times Spotted 56 | . . 5 15 11 25 Peak Tracking Total 9 | . . 2 9 3 9 Tactical Retreats 7 | . . . 1 2 4 Traps | -11 -10 -10 -8 -6 -6 ------- Run | Yrd Mat Sub Scr Fac Ext Traps Triggered 2 | . . 1 . . 1 Indirectly . | . . . . . . Trap Hack Attempts . | . . . . . . Triggered . | . . . . . . Disarmed . | . . . . . . Reprogrammed . | . . . . . . Reused . | . . . . . . Traps Extracted . | . . . . . . Installed . | . . . . . . Triggered . | . . . . . . Machines | -11 -10 -10 -8 -6 -6 ---------- Run | Yrd Mat Sub Scr Fac Ext Machines Disabled 9 | . . 1 7 1 . Max in Single Turn 1 | . . 1 1 1 . Machines Repaired . | . . . . . . Machines Dismantled . | . . . . . . Machines Sabotaged . | . . . . . . Overloaded Fab Kills . | . . . . . . Hacking | -11 -10 -10 -8 -6 -6 --------- Run | Yrd Mat Sub Scr Fac Ext Machines Accessed 13 | . . 1 5 3 4 Terminals 5 | . . . . 1 4 Fabricators . | . . . . . . Repair Stations . | . . . . . . Recycling Units 1 | . . . . 1 . Scanalyzers 1 | . . . . 1 . Garrison Access . | . . . . . . Total Hacks 36 | . . 9 15 5 7 Successful 29 | . . 9 15 3 2 Failed 7 | . . . . 2 5 Catastrophic 2 | . . . . . 2 Database Lockouts . | . . . . . . Manual 7 | . . . . 3 4 Terminals 8 | . . . . 1 7 Fabricators . | . . . . . . Repair Stations . | . . . . . . Recycling Units 2 | . . . . 2 . Scanalyzers 2 | . . . . 2 . Garrison Access . | . . . . . . Terminal Hacks 26 | . . 9 15 . 2 Record 22 | . . 8 14 . . Open Door 1 | . . . . . 1 Level Access Points 1 | . . . . . 1 Proto ID Catalog 2 | . . 1 1 . . Fabricator Hacks . | . . . . . . Repair Station Hacks . | . . . . . . Recycling Unit Hacks . | . . . . . . Scanalyzer 1 | . . . . 1 . Retrieve Study 1 | . . . . 1 . Garrison Access Hacks . | . . . . . . Unauthorized Hacks 2 | . . . . 2 . Terminals . | . . . . . . Fabricators . | . . . . . . Repair Stations . | . . . . . . Recycling Units 2 | . . . . 2 . Monitor 1 | . . . . 1 . Recyclers 1 | . . . . 1 . Scanalyzers . | . . . . . . Garrison Access . | . . . . . . Data Cores Recovered . | . . . . . . Used . | . . . . . . Hacking Detections 4 | . . . . 2 2 Full Trace Events . | . . . . . . Feedback Events . | . . . . . . Feedback Blocked . | . . . . . . Robot Schematics Acquired . | . . . . . . Robots Built . | . . . . . . Authchips . | . . . . . . Time . | . . . . . . Total Robot Build Rating . | . . . . . . Part Schematics Acquired . | . . . . . . Parts Built . | . . . . . . Authchips . | . . . . . . Time . | . . . . . . Total Part Build Rating . | . . . . . . Part Studies Acquired 1 | . . . . 1 . Parts Repaired . | . . . . . . Time . | . . . . . . Parts Recycled . | . . . . . . Recycled Matter . | . . . . . . Retrieved Matter . | . . . . . . Retrieved Components . | . . . . . . Parts Scanalyzed . | . . . . . . Part Schematics Acquired . | . . . . . . Parts Damaged . | . . . . . . Bothacking | -11 -10 -10 -8 -6 -6 ------------ Run | Yrd Mat Sub Scr Fac Ext Used RIF Installer . | . . . . . . Robots Hacked . | . . . . . . Non-combat . | . . . . . . Combat . | . . . . . . Robot Hacks Applied . | . . . . . . Relay Couplers Released . | . . . . . . Fabnet Peak Effective % . | . . . . . . Robots Rewired . | . . . . . . Allies Hacked . | . . . . . . Hacks Repelled . | . . . . . . Allies | -11 -10 -10 -8 -6 -6 -------- Run | Yrd Mat Sub Scr Fac Ext Total Allies 5 | . . . 1 2 2 Largest Group 2 | . . . 1 2 2 Highest-Rated Group 56 | . . . 34 44 56 Highest-Rated Ally 34 | . . . 34 24 31 Total Orders . | . . . . . . Ally Attacks 24 | . . . 13 2 9 Total Damage 459 | . . . 216 36 207 Kills 4 | . . . 4 . . Allies Corrupted . | . . . . . . Allies Melted 4 | . . . 3 . 1 Intel | -11 -10 -10 -8 -6 -6 ------- Run | Yrd Mat Sub Scr Fac Ext Active Infowar (turns) 8534 | 51 193 751 5758 994 787 Optics 397 | . . 378 19 . . Sensors 1717 | . . . 1 989 727 Terrain 1199 | 10 . . 2 947 240 Seismic 6448 | 41 193 458 5756 . . Machine Analysis 1388 | . . . . 994 394 Jamming 490 | . . . . . 490 Robot Analysis Total . | . . . . . . Derelict Logs Recovered 5 | . . 1 4 . . Drone Launches . | . . . . . . Drone Recoveries . | . . . . . . Exploration | -11 -10 -10 -8 -6 -6 ------------- Run | Yrd Mat Sub Scr Fac Ext Turns Passed 8890 | 113 193 771 5947 996 870 Spaces Moved 3457 | 53 17 523 1930 473 461 Core 1480 | 4 . . 1350 . 126 Treads 740 | 49 17 211 294 . 169 Legs 760 | . . . 121 473 166 Wheels 477 | . . 312 165 . . Hover . | . . . . . . Flight . | . . . . . . Fastest Speed 50 | 50 160 110 50 112 50 Average Speed 214 | 151 160 130 272 157 138 Slowest Speed 500 | 160 160 160 500 190 330 Overloaded Moves . | . . . . . . Propulsion Burnouts . | . . . . . . Robots Hopped . | . . . . . . Potential Cave-ins . | . . . . . . Cave-ins Triggered . | . . . . . . Exploration Rate (%) 33 | 4 5 39 94 12 44 Regions Visited 5 Branch Regions 3 Pre-discovered Areas 2 | . . 1 1 . . Known Exits Taken 2 | . . . 1 1 . Unknown Exits Taken 3 | 1 1 1 . . . Scrap Searched 9 | . . 3 6 . . Spaces Dug 11 | . . . 2 5 4 Terrain Destroyed 14 | . . . 5 5 4 Melee 9 | . . . . 5 4 Projectile 5 | . . . 5 . . AOE . | . . . . . . Terrain Rammed . | . . . . . . Walls Destroyed . | . . . . . . Machines Disabled . | . . . . . . Actions | -11 -10 -10 -8 -6 -6 --------- Run | Yrd Mat Sub Scr Fac Ext Total 4764 | 75 183 582 2609 694 621 Wait 1021 | 8 167 18 612 151 65 Move 3452 | 52 16 522 1929 472 461 Hop . | . . . . . . Pick Up 16 | 2 . 2 8 2 2 Fast Attach 67 | 8 . 9 18 15 17 Attach 20 | . . 1 4 5 10 Detach 24 | 1 . 6 3 8 6 Swap 1 | . . 1 . . . Drop 37 | . . 6 19 9 3 Fire 73 | 4 . 17 15 8 29 Melee 37 | . . . . 24 13 Ram . | . . . . . . Kick . | . . . . . . Crush . | . . . . . . Escape Stasis 15 | . . . . . 15 Rewire 1 | . . . 1 . . Trap . | . . . . . . Miscellaneous . | . . . . . . Route ------- -11/Scrapyard -10/Materials -10/Subcaves -8/Scraptown (discovered 2 exits: *Fac x2) -6/Factory -6/Extension (discovered 2 exits: Fac x2) History --------- Turn | Location | Event 7 | -11/Scrapyard | Discovered new exit (range 14) 114 | -11/Scrapyard | Entered Materials 273 | -10/Materials | Discovered new exit (range 9) 305 | -10/Materials | Build established: Mutant 307 | -10/Materials | Entered Subcaves 308 | -10/Subcaves | Approached by a straggling Scientist 949 | -10/Subcaves | Visited 4L-MR0's lab 972 | -10/Subcaves | Found Meta Core 973 | -10/Subcaves | Attached Meta Core, gained temporary slots: Propulsion, Utility, Weapon 1078 | -10/Subcaves | Entered Scraptown 1261 | -8/Scraptown | Build established: Scavenger-Skirmisher 1653 | -8/Scraptown | Visited Awakened 1798 | -8/Scraptown | Visited The Evicted 2554 | -8/Scraptown | Heard Great Nut preacher, LISTEN AND RECITE! 3299 | -8/Scraptown | Scanned Subdweller tech in exchange for log data 3314 | -8/Scraptown | Learned location of Testing (-2) 3319 | -8/Scraptown | Learned Factory trap positions 3324 | -8/Scraptown | Learned Research trap positions 3329 | -8/Scraptown | Learned Factory stockpile data 3370 | -8/Scraptown | Discovered new exit (range 5) 3386 | -8/Scraptown | Identified exit to Factory 3626 | -8/Scraptown | Visited Cyclists 3634 | -8/Scraptown | Build established: Mutant 3701 | -8/Scraptown | Visited Spacefarers 3846 | -8/Scraptown | Visited Artisan Demo Area 4018 | -8/Scraptown | Visited Symbiants 4073 | -8/Scraptown | Visited Shadow of the Wyrm 4273 | -8/Scraptown | Visited UFD Registry 4273 | -8/Scraptown | Registered with UFD as "Arcgrid" 4383 | -8/Scraptown | Entered Cyclist Reading Room 4556 | -8/Scraptown | Visited Science Guys 4648 | -8/Scraptown | Visited Observation Area 4806 | -8/Scraptown | Visited Curators Association 5173 | -8/Scraptown | Visited Botcube Research 5191 | -8/Scraptown | Found Botcube 5237 | -8/Scraptown | Visited Supply Room 5317 | -8/Scraptown | Visited Modified Component R&D 5678 | -8/Scraptown | Build established: Gunner 5717 | -8/Scraptown | Discovered exit to Factory (range 5) 5893 | -8/Scraptown | Visited Abandonware Association 5983 | -8/Scraptown | Learned abandonware demo "HACKBUD.EXE" 5983 | -8/Scraptown | Learned abandonware demo "REPAIR.EXE" 6059 | -8/Scraptown | Visited A0-MCA Data Center 6067 | -8/Scraptown | Given a B+ rating by A0-MCA 6077 | -8/Scraptown | Found A0-MCA's Component Scanner 6134 | -8/Scraptown | Visited DA-N13 Charitable Foundation 6173 | -8/Scraptown | Found DCF Scrap (27 items) 6194 | -8/Scraptown | Botcube activated 6202 | -8/Scraptown | Botcube completed mutation into core form, armed with 1 gun, 1 special weapon. 6398 | -8/Scraptown | Met Optimus 6398 | -8/Scraptown | Accepted into 0bPrime 6798 | -8/Scraptown | Civil war broke out across Scraptown 6834 | -8/Scraptown | Released all parts (7) 6837 | -8/Scraptown | Core integrity fell below 50% 6896 | -8/Scraptown | Found Thermal Lance 6900 | -8/Scraptown | Lost 5 allies 6940 | -8/Scraptown | Found Scrap Suit 7025 | -8/Scraptown | Entered Factory 7025 | -6/Factory | Evolved 8 slots: Power x1, Propulsion x1, Utility x5, Weapon x1 7026 | -6/Factory | Loaded intel: 102 trap records 7036 | -6/Factory | Lost 7 allies 7530 | -6/Factory | Build established: Scavenger-Assassin 8001 | -6/Factory | Discovered new exit (range 12) 8019 | -6/Factory | Identified exit to Extension 8021 | -6/Factory | Entered Extension 8310 | -6/Extension | Lost 3 parts (1n1u1w) 8321 | -6/Extension | Disrupted transfer network 8380 | -6/Extension | Spotted B-75 Beast 8397 | -6/Extension | Spotted B-75 Beast 8416 | -6/Extension | Core integrity fell below 50% 8419 | -6/Extension | Core integrity fell below 20% 8446 | -6/Extension | Lost 10 parts (1p2n4u3w) 8489 | -6/Extension | Identified exit to Factory 8799 | -6/Extension | Rescued a captive Derelict 8800 | -6/Extension | Rescued a captive Derelict 8891 | -6/Extension | Destroyed by B-75 Beast with Heavy Plasma Cannon Last Messages --------------- 08842_ W-25 Informer distress signal jammed. 08845_ R-10 Processor collects Lgt. Angular Momentum Engine. 08845_ W-25 Informer distress signal jammed. 08852_ Acquired 25 matter. 08855_ R-10 Processor destroyed. 08861_ B-75 Beast suffers critical hit (Burn). 08862_ Hvy. Beamcaster destroyed. 08862_ Imp. Light Armor Plating destroyed. 08863_ The unstable cave ceiling collapses. 08863_ Rnf. Deuterium Engine crushed. 08865_ Lgt. Treads destroyed. 08869_ Acquired Beamcaster. 08870_ Acquired 10 matter. 08874_ Door Terminal disabled. 08882_ Acquired Thermal Lance. 08885_ Acquired Lgt. Ion Engine. 08886_ Imp. Deuterium Engine destroyed. 08886_ Machine disabled. 08886_ Acquired 15 matter. 08890_ Hvy. Beamcaster destroyed. Map ----- +----------------------------------------------------+ | ????# #??????#= #??????????????????????? | | ????##+#+####??????# #??????????????????????? | | ???????? ????????# #??????????????????????? | | ????????? ?????########+#??????????????????????? | | ?????????? ????# #??????????????????????? | | ??????????? ???# %#??????????????????????? | | ??????????? ??# #??????????????????????? | | ???????????? #?# "" #??????????????????????? | | ????????????? =#?# """ #??????????????????????? | | ?????????????? #?# T" #??????????????????????? | | ?????????????? #?# """ #??????????????????????? | | ???????????????#?# "" #??????????????????????? | | ?????????????????# ! #??????????????????????? | | ?????????????????# #??????????????????????? | | ?????????????????######## #??????????????????????? | | ????????????????????????# #??????????????????????? | | ??????????????????????### #??????????????????????? | | ????????????????????### # #??????????????????????? | | ????????????????????# %%#??????????????????????? | | ????????????????????# % #??????????????????????? | | ????????????????????### /#??????????????????????? | | ??????????????????????##;%#??????????????????????? | | ??????????????????????# % #??????????????????????? | | ??????????????????????##; #??##?##???????????????? | | ??????????????????????##; ### ## ### ????????????? | | ??????????????????????#" @"" Y "" ????????????? | | ??????????????????????# "% Y " "???????????? | | ??????????????????????#==BB #?????????? | | ????????????###???###?# BB #?????????? | | #############"#####"### R #?????????? | | ?????????? | | ??????????? | | % %% BB ??????????? | | % % BB % ??????????? | | % k R u ??????????? | | ####################### ??????????? | | ????????????????????### ??????????? | | ??????????????????????# ???????????? | | ??????????????????????# ???????????? | | ??????????????????????# ????????????? | | ??????????????????????######T#"""####????????????? | | ????????????????????????????##?